[Event "Titled Tuesday Blitz May 10 Late 2022"]
[White "Girsh, Daniel"]
[Black "Abdrlauf, Elham"]
[WhiteFideId "30949190"]
[BlackFideId "1533533"]
[WhiteElo "2437"]
[BlackElo "2371"]
[Result "1-0"]
[Round "01"]
[TimeControl "180+1"]
[Date "2022.05.11"]
[WhiteClock "0:00:15"]
[BlackClock "0:00:04"]

1. e4 {[%clk 0:03:00]}  d6 {[%clk 0:02:56]} 2. d4 {[%clk 0:03:00]}  Nf6 {[%clk 0:02:56]} 3. Nc3 {[%clk 0:03:00]}  g6 {[%clk 0:02:56]} 4. Nf3 {[%clk 0:03:01]}  Bg7 {[%clk 0:02:56]} 5. h3 {[%clk 0:03:01]}  O-O {[%clk 0:02:56]} 6. Be2 {[%clk 0:03:02]}  Nbd7 {[%clk 0:02:56]} 7. O-O {[%clk 0:03:01]}  e5 {[%clk 0:02:57]} 8. Be3 {[%clk 0:03:00]}  exd4 {[%clk 0:02:56]} 9. Nxd4 {[%clk 0:02:54]}  Re8 {[%clk 0:02:57]} 10. f3 {[%clk 0:02:44]}  d5 {[%clk 0:02:56]} 11. Bg5 {[%clk 0:02:39]}  h6 {[%clk 0:02:48]} 12. Bh4 {[%clk 0:02:32]}  c5 {[%clk 0:02:37]} 13. Ndb5 {[%clk 0:02:25]}  Qb6 {[%clk 0:02:35]} 14. Nxd5 {[%clk 0:02:11]}  Nxd5 {[%clk 0:02:32]} 15. Qxd5 {[%clk 0:02:11]}  Nf6 {[%clk 0:02:11]} 16. Qd6 {[%clk 0:02:07]}  Nxe4 {[%clk 0:01:37]} 17. Qxb6 {[%clk 0:01:54]}  axb6 {[%clk 0:01:38]} 18. Nc7 {[%clk 0:01:39]}  Bd7 {[%clk 0:01:07]} 19. fxe4 {[%clk 0:01:29]}  Rxe4 {[%clk 0:00:58]} 20. Bf3 {[%clk 0:01:12]}  Rxh4 {[%clk 0:00:51]} 21. Nxa8 {[%clk 0:01:12]}  Be6 {[%clk 0:00:36]} 22. Nxb6 {[%clk 0:01:11]}  Rb4 {[%clk 0:00:35]} 23. Nd5 {[%clk 0:01:08]}  Rxb2 {[%clk 0:00:36]} 24. Rab1 {[%clk 0:01:08]}  Rxa2 {[%clk 0:00:32]} 25. Rxb7 {[%clk 0:01:06]}  Rxc2 {[%clk 0:00:31]} 26. Rd1 {[%clk 0:00:57]}  Bd4+ {[%clk 0:00:24]} 27. Kh1 {[%clk 0:00:56]}  Rf2 {[%clk 0:00:16]} 28. Nc7 {[%clk 0:00:51]}  Bxh3 {[%clk 0:00:12]} 29. gxh3 {[%clk 0:00:47]}  Rxf3 {[%clk 0:00:12]} 30. Kg2 {[%clk 0:00:42]}  Rf5 {[%clk 0:00:07]} 31. Nb5 {[%clk 0:00:33]}  Rg5+ {[%clk 0:00:05]} 32. Kf3 {[%clk 0:00:31]}  Rf5+ {[%clk 0:00:06]} 33. Kg2 {[%clk 0:00:24]}  Be5 {[%clk 0:00:05]} 34. Rd5 {[%clk 0:00:18]}  Rg5+ {[%clk 0:00:06]} 35. Kh1 {[%clk 0:00:18]}  Rh5 {[%clk 0:00:06]} 36. Kg2 {[%clk 0:00:16]}  Rg5+ {[%clk 0:00:06]} 37. Kf3 {[%clk 0:00:17]}  Rg3+ {[%clk 0:00:03]} 38. Ke4 {[%clk 0:00:17]}  Bf6 {[%clk 0:00:01]} 39. Rd6 {[%clk 0:00:15]}  Bg7 {[%clk 0:00:01]} 40. Rd8+ {[%clk 0:00:14]}  Kh7 {[%clk 0:00:02]} 41. Rxf7 {[%clk 0:00:14]}  Rg1 {[%clk 0:00:02]} 42. Rdd7 {[%clk 0:00:14]}  Re1+ {[%clk 0:00:03]} 43. Kf3 {[%clk 0:00:13]}  Rf1+ {[%clk 0:00:04]} 44. Kg2 {[%clk 0:00:14]}  Rxf7 {[%clk 0:00:05]} 45. Rxf7 {[%clk 0:00:14]}  g5 {[%clk 0:00:06]} 46. Rc7 {[%clk 0:00:14]}  c4 {[%clk 0:00:06]} 47. Rxc4 {[%clk 0:00:14]}  Kg6 {[%clk 0:00:06]} 48. Rc6+ {[%clk 0:00:15]}  Kf5 {[%clk 0:00:07]} 49. Nd6+ {[%clk 0:00:15]}  Ke5 {[%clk 0:00:07]} 50. Ne8 {[%clk 0:00:15]}  Bf8 {[%clk 0:00:06]} 51. Rf6 {[%clk 0:00:14]}  Ba3 {[%clk 0:00:05]} 52. Rxh6 {[%clk 0:00:15]}  Kf5 {[%clk 0:00:06]} 53. Ng7+ {[%clk 0:00:14]}  Ke4 {[%clk 0:00:06]} 54. Rg6 {[%clk 0:00:14]}  Bc1 {[%clk 0:00:06]} 55. Kg3 {[%clk 0:00:13]}  Ke5 {[%clk 0:00:04]} 56. Kg4 {[%clk 0:00:14]}  Bd2 {[%clk 0:00:04]} 57. Ne6 {[%clk 0:00:15]}  Kd6 {[%clk 0:00:04]} 58. Nxg5+ {[%clk 0:00:15]}  Ke7 {[%clk 0:00:05]} 59. Ne4 {[%clk 0:00:15]}  Kf7 {[%clk 0:00:06]} 60. Rc6 {[%clk 0:00:15]}  Be3 {[%clk 0:00:04]} 61. h4 {[%clk 0:00:15]} 1-0


[Site "https://www.chess.com"]

[Event "Titled Tuesday Blitz May 10 Late 2022"]
[White "Gomez Dieguez, David"]
[Black "Izzat, Kanan"]
[WhiteFideId "22223630"]
[BlackFideId "13405209"]
[WhiteElo "2115"]
[BlackElo "2362"]
[Result "0-1"]
[Round "01"]
[TimeControl "180+1"]
[Date "2022.05.11"]
[WhiteClock "0:00:15"]
[BlackClock "0:00:48"]

1. c4 {[%clk 0:03:00]}  e6 {[%clk 0:02:59]} 2. Nf3 {[%clk 0:03:00]}  d5 {[%clk 0:02:59]} 3. e3 {[%clk 0:03:00]}  Nf6 {[%clk 0:02:59]} 4. Nc3 {[%clk 0:03:01]}  c6 {[%clk 0:02:58]} 5. b3 {[%clk 0:03:00]}  Nbd7 {[%clk 0:02:58]} 6. Bb2 {[%clk 0:02:57]}  b6 {[%clk 0:02:58]} 7. d4 {[%clk 0:02:54]}  Bb7 {[%clk 0:02:58]} 8. Be2 {[%clk 0:02:48]}  Bd6 {[%clk 0:02:47]} 9. O-O {[%clk 0:02:47]}  O-O {[%clk 0:02:47]} 10. Qc2 {[%clk 0:02:44]}  Rc8 {[%clk 0:02:47]} 11. Rad1 {[%clk 0:02:44]}  c5 {[%clk 0:02:46]} 12. dxc5 {[%clk 0:02:37]}  Nxc5 {[%clk 0:02:47]} 13. Qb1 {[%clk 0:02:25]}  Qe7 {[%clk 0:02:36]} 14. Rfe1 {[%clk 0:02:24]}  dxc4 {[%clk 0:02:32]} 15. Bxc4 {[%clk 0:02:23]}  Bxf3 {[%clk 0:02:32]} 16. gxf3 {[%clk 0:02:22]}  Nh5 {[%clk 0:02:28]} 17. Kh1 {[%clk 0:01:59]}  Bb8 {[%clk 0:02:12]} 18. Bf1 {[%clk 0:01:50]}  Qh4 {[%clk 0:02:10]} 19. f4 {[%clk 0:01:32]}  Nxf4 {[%clk 0:01:50]} 20. exf4 {[%clk 0:01:26]}  Qxf4 {[%clk 0:01:50]} 21. Kg2 {[%clk 0:01:06]}  Qxh2+ {[%clk 0:01:33]} 22. Kf3 {[%clk 0:01:06]}  Qh5+ {[%clk 0:01:32]} 23. Kg2 {[%clk 0:01:01]}  Qg4+ {[%clk 0:01:30]} 24. Kh1 {[%clk 0:00:56]}  Rfd8 {[%clk 0:01:17]} 25. Re3 {[%clk 0:00:39]}  Qf4 {[%clk 0:01:03]} 26. Rg3 {[%clk 0:00:31]}  g6 {[%clk 0:00:50]} 27. Ne4 {[%clk 0:00:17]}  Nxe4 {[%clk 0:00:47]} 28. Rxd8+ {[%clk 0:00:16]}  Rxd8 {[%clk 0:00:47]} 29. Bc1 {[%clk 0:00:15]}  Nxf2+ {[%clk 0:00:47]} 30. Kg2 {[%clk 0:00:15]}  Qxg3# {[%clk 0:00:48]} 0-1


[Site "https://www.chess.com"]

[Event "Titled Tuesday Blitz May 10 Late 2022"]
[White "Gutierrez Olivares, Daniel"]
[Black "Leiva, Gianmarco"]
[WhiteFideId "2264005"]
[BlackFideId "3804399"]
[WhiteElo "2317"]
[BlackElo "2323"]
[Result "0-1"]
[Round "01"]
[TimeControl "180+1"]
[Date "2022.05.11"]
[WhiteClock "0:00:27"]
[BlackClock "0:00:27"]

1. Nf3 {[%clk 0:02:59]}  Nf6 {[%clk 0:03:00]} 2. g3 {[%clk 0:03:00]}  g6 {[%clk 0:02:58]} 3. Bg2 {[%clk 0:02:58]}  Bg7 {[%clk 0:02:59]} 4. d3 {[%clk 0:02:59]}  O-O {[%clk 0:02:59]} 5. Nbd2 {[%clk 0:02:59]}  d5 {[%clk 0:03:00]} 6. O-O {[%clk 0:03:00]}  c5 {[%clk 0:03:00]} 7. e4 {[%clk 0:03:01]}  Nc6 {[%clk 0:03:01]} 8. a4 {[%clk 0:03:01]}  b6 {[%clk 0:03:01]} 9. Re1 {[%clk 0:03:02]}  e5 {[%clk 0:03:00]} 10. h3 {[%clk 0:03:02]}  h6 {[%clk 0:03:00]} 11. c3 {[%clk 0:03:01]}  Be6 {[%clk 0:02:57]} 12. Qc2 {[%clk 0:02:59]}  Qc7 {[%clk 0:02:55]} 13. exd5 {[%clk 0:02:56]}  Nxd5 {[%clk 0:02:56]} 14. Nc4 {[%clk 0:02:56]}  Rfe8 {[%clk 0:02:56]} 15. Nfd2 {[%clk 0:02:54]}  Rad8 {[%clk 0:02:55]} 16. Na3 {[%clk 0:02:50]}  Qd7 {[%clk 0:02:41]} 17. Nb5 {[%clk 0:02:42]}  Bxh3 {[%clk 0:02:41]} 18. Nc4 {[%clk 0:02:32]}  Bxg2 {[%clk 0:02:31]} 19. Kxg2 {[%clk 0:02:32]}  Re6 {[%clk 0:02:07]} 20. a5 {[%clk 0:02:20]}  a6 {[%clk 0:02:02]} 21. Nba3 {[%clk 0:02:09]}  b5 {[%clk 0:01:58]} 22. Nd2 {[%clk 0:02:06]}  Nxa5 {[%clk 0:01:51]} 23. Ne4 {[%clk 0:02:00]}  Qc7 {[%clk 0:01:38]} 24. Nb1 {[%clk 0:01:54]}  c4 {[%clk 0:01:28]} 25. dxc4 {[%clk 0:01:42]}  Nxc4 {[%clk 0:01:23]} 26. Na3 {[%clk 0:01:39]}  Nxa3 {[%clk 0:01:19]} 27. Rxa3 {[%clk 0:01:38]}  f5 {[%clk 0:01:19]} 28. Nd2 {[%clk 0:01:34]}  Kh7 {[%clk 0:01:19]} 29. Qb1 {[%clk 0:01:27]}  Qc6 {[%clk 0:01:15]} 30. Kg1 {[%clk 0:01:19]}  e4 {[%clk 0:01:14]} 31. Nf1 {[%clk 0:01:18]}  Bf8 {[%clk 0:01:07]} 32. Ra2 {[%clk 0:01:13]}  Bc5 {[%clk 0:01:07]} 33. Qa1 {[%clk 0:01:06]}  Nf6 {[%clk 0:01:07]} 34. Be3 {[%clk 0:01:02]}  Ng4 {[%clk 0:01:06]} 35. Bxc5 {[%clk 0:01:02]}  Qxc5 {[%clk 0:01:06]} 36. b4 {[%clk 0:01:01]}  Qb6 {[%clk 0:01:05]} 37. Ree2 {[%clk 0:01:00]}  Rd3 {[%clk 0:01:03]} 38. Kg2 {[%clk 0:00:53]}  Qc6 {[%clk 0:00:54]} 39. Ne3 {[%clk 0:00:48]}  Nxe3+ {[%clk 0:00:52]} 40. Rxe3 {[%clk 0:00:46]}  Rxe3 {[%clk 0:00:52]} 41. fxe3 {[%clk 0:00:47]}  Rd6 {[%clk 0:00:52]} 42. Kh3 {[%clk 0:00:34]}  g5 {[%clk 0:00:32]} 43. Qf1 {[%clk 0:00:33]}  Kg6 {[%clk 0:00:30]} 44. g4 {[%clk 0:00:30]}  fxg4+ {[%clk 0:00:29]} 45. Kxg4 {[%clk 0:00:31]}  Rf6 {[%clk 0:00:30]} 46. Qd1 {[%clk 0:00:27]}  Rf3 {[%clk 0:00:27]} 0-1


[Site "https://www.chess.com"]

[Event "Titled Tuesday Blitz May 10 Late 2022"]
[White "Hakobyan, Aram"]
[Black "Obrien, Matthew"]
[WhiteFideId "13306677"]
[BlackFideId "2059150"]
[WhiteElo "2557"]
[BlackElo "2527"]
[Result "1-0"]
[Round "01"]
[TimeControl "180+1"]
[Date "2022.05.10"]
[WhiteClock "0:01:29"]
[BlackClock "0:00:03"]

1. d4 {[%clk 0:03:00]}  Nf6 {[%clk 0:02:59]} 2. c4 {[%clk 0:02:59]}  e6 {[%clk 0:02:59]} 3. a3 {[%clk 0:02:59]}  c5 {[%clk 0:02:56]} 4. d5 {[%clk 0:02:59]}  exd5 {[%clk 0:02:56]} 5. cxd5 {[%clk 0:03:00]}  d6 {[%clk 0:02:56]} 6. Nc3 {[%clk 0:03:00]}  g6 {[%clk 0:02:57]} 7. e4 {[%clk 0:02:58]}  Bg7 {[%clk 0:02:57]} 8. Nf3 {[%clk 0:02:58]}  O-O {[%clk 0:02:57]} 9. Be2 {[%clk 0:02:58]}  a6 {[%clk 0:02:57]} 10. a4 {[%clk 0:02:58]}  Re8 {[%clk 0:02:57]} 11. Nd2 {[%clk 0:02:58]}  Nbd7 {[%clk 0:02:55]} 12. O-O {[%clk 0:02:58]}  b6 {[%clk 0:02:44]} 13. f3 {[%clk 0:02:51]}  Nh5 {[%clk 0:02:41]} 14. Nc4 {[%clk 0:02:50]}  Bd4+ {[%clk 0:02:39]} 15. Kh1 {[%clk 0:02:39]}  Qh4 {[%clk 0:02:32]} 16. Qe1 {[%clk 0:02:39]}  Qe7 {[%clk 0:02:10]} 17. f4 {[%clk 0:02:32]}  Ndf6 {[%clk 0:01:55]} 18. Bf3 {[%clk 0:02:17]}  Bf5 {[%clk 0:01:43]} 19. e5 {[%clk 0:02:10]}  Ng4 {[%clk 0:01:22]} 20. Nxd6 {[%clk 0:01:59]}  Qxd6 {[%clk 0:01:06]} 21. Bxg4 {[%clk 0:01:59]}  Bxg4 {[%clk 0:00:34]} 22. exd6 {[%clk 0:01:56]}  Rxe1 {[%clk 0:00:35]} 23. Rxe1 {[%clk 0:01:57]}  Rd8 {[%clk 0:00:22]} 24. Be3 {[%clk 0:01:48]}  Rxd6 {[%clk 0:00:18]} 25. h3 {[%clk 0:01:40]}  Bd7 {[%clk 0:00:14]} 26. g4 {[%clk 0:01:33]}  Nf6 {[%clk 0:00:11]} 27. Rad1 {[%clk 0:01:30]}  Bxc3 {[%clk 0:00:09]} 28. bxc3 {[%clk 0:01:31]}  Rxd5 {[%clk 0:00:06]} 29. a5 {[%clk 0:01:30]}  Bc6 {[%clk 0:00:05]} 30. Kg1 {[%clk 0:01:29]}  bxa5 {[%clk 0:00:04]} 31. Rxd5 {[%clk 0:01:29]}  Nxd5 {[%clk 0:00:05]} 32. Bxc5 {[%clk 0:01:30]}  Nxc3 {[%clk 0:00:04]} 33. Re7 {[%clk 0:01:28]}  a4 {[%clk 0:00:03]} 34. Rc7 {[%clk 0:01:28]}  Bb5 {[%clk 0:00:03]} 35. Rc8+ {[%clk 0:01:28]}  Kg7 {[%clk 0:00:03]} 36. Bd4+ {[%clk 0:01:29]} 1-0


[Site "https://www.chess.com"]

[Event "Titled Tuesday Blitz May 10 Late 2022"]
[White "Hnydiuk, Aleksander"]
[Black "Can, Melih Kaan"]
[WhiteFideId "1109057"]
[BlackFideId "6317383"]
[WhiteElo "2374"]
[BlackElo "2049"]
[Result "0-1"]
[Round "01"]
[TimeControl "180+1"]
[Date "2022.05.11"]
[WhiteClock "0:00:05"]
[BlackClock "0:00:04"]

1. d4 {[%clk 0:02:59]}  d5 {[%clk 0:02:57]} 2. c4 {[%clk 0:02:59]}  c6 {[%clk 0:02:58]} 3. cxd5 {[%clk 0:02:59]}  cxd5 {[%clk 0:02:58]} 4. Nc3 {[%clk 0:02:59]}  Nf6 {[%clk 0:02:58]} 5. Bf4 {[%clk 0:02:58]}  Nc6 {[%clk 0:02:59]} 6. e3 {[%clk 0:02:59]}  e6 {[%clk 0:02:59]} 7. Bd3 {[%clk 0:02:55]}  Bd6 {[%clk 0:02:59]} 8. Bxd6 {[%clk 0:02:54]}  Qxd6 {[%clk 0:03:00]} 9. f4 {[%clk 0:02:54]}  Bd7 {[%clk 0:02:57]} 10. Nf3 {[%clk 0:02:55]}  O-O {[%clk 0:02:57]} 11. O-O {[%clk 0:02:55]}  a6 {[%clk 0:02:51]} 12. Ne5 {[%clk 0:02:53]}  Rac8 {[%clk 0:02:50]} 13. Qf3 {[%clk 0:02:49]}  b5 {[%clk 0:02:49]} 14. a3 {[%clk 0:02:17]}  Na5 {[%clk 0:02:49]} 15. Rac1 {[%clk 0:01:52]}  Nc4 {[%clk 0:02:46]} 16. Qe2 {[%clk 0:01:46]}  Rc7 {[%clk 0:02:40]} 17. Na2 {[%clk 0:01:27]}  Rfc8 {[%clk 0:02:37]} 18. Rc2 {[%clk 0:01:21]}  a5 {[%clk 0:02:29]} 19. Rfc1 {[%clk 0:01:20]}  h6 {[%clk 0:02:07]} 20. Qe1 {[%clk 0:01:17]}  Qb6 {[%clk 0:01:16]} 21. h3 {[%clk 0:00:56]}  Be8 {[%clk 0:01:15]} 22. Kh2 {[%clk 0:00:54]}  Nd6 {[%clk 0:01:12]} 23. Rxc7 {[%clk 0:00:43]}  Rxc7 {[%clk 0:01:12]} 24. Rxc7 {[%clk 0:00:43]}  Qxc7 {[%clk 0:01:13]} 25. Qc3 {[%clk 0:00:42]}  Qxc3 {[%clk 0:01:07]} 26. Nxc3 {[%clk 0:00:42]}  b4 {[%clk 0:01:06]} 27. axb4 {[%clk 0:00:41]}  axb4 {[%clk 0:01:07]} 28. Na2 {[%clk 0:00:39]}  b3 {[%clk 0:01:03]} 29. Nc1 {[%clk 0:00:27]}  Ba4 {[%clk 0:01:02]} 30. Kg1 {[%clk 0:00:24]}  Nfe4 {[%clk 0:01:02]} 31. Kf1 {[%clk 0:00:20]}  Kf8 {[%clk 0:01:02]} 32. Ke2 {[%clk 0:00:19]}  Ke7 {[%clk 0:01:02]} 33. Nf3 {[%clk 0:00:15]}  Nc4 {[%clk 0:00:54]} 34. Bxe4 {[%clk 0:00:12]}  dxe4 {[%clk 0:00:51]} 35. Nd2 {[%clk 0:00:13]}  Nxb2 {[%clk 0:00:43]} 36. Ncxb3 {[%clk 0:00:12]}  Bb5+ {[%clk 0:00:38]} 37. Kf2 {[%clk 0:00:11]}  Nd1+ {[%clk 0:00:36]} 38. Kg3 {[%clk 0:00:11]}  f5 {[%clk 0:00:34]} 39. Nc5 {[%clk 0:00:08]}  Nxe3 {[%clk 0:00:33]} 40. Kf2 {[%clk 0:00:06]}  Nd5 {[%clk 0:00:32]} 41. Kg3 {[%clk 0:00:05]}  g5 {[%clk 0:00:31]} 42. fxg5 {[%clk 0:00:04]}  hxg5 {[%clk 0:00:32]} 43. h4 {[%clk 0:00:04]}  f4+ {[%clk 0:00:32]} 44. Kg4 {[%clk 0:00:03]}  e3 {[%clk 0:00:30]} 45. Nf3 {[%clk 0:00:03]}  gxh4 {[%clk 0:00:24]} 46. Kxh4 {[%clk 0:00:04]}  Bf1 {[%clk 0:00:14]} 47. g3 {[%clk 0:00:04]}  Kf6 {[%clk 0:00:13]} 48. gxf4 {[%clk 0:00:03]}  Kf5 {[%clk 0:00:12]} 49. Kg3 {[%clk 0:00:03]}  Nxf4 {[%clk 0:00:12]} 50. Nd7 {[%clk 0:00:01]}  Bc4 {[%clk 0:00:10]} 51. Nh4+ {[%clk 0:00:01]}  Ke4 {[%clk 0:00:09]} 52. Nf6+ {[%clk 0:00:01]}  Kxd4 {[%clk 0:00:07]} 53. Kxf4 {[%clk 0:00:02]}  e5+ {[%clk 0:00:07]} 54. Kg3 {[%clk 0:00:02]}  Kd3 {[%clk 0:00:05]} 55. Nf3 {[%clk 0:00:02]}  e4 {[%clk 0:00:04]} 56. Nxe4 {[%clk 0:00:02]}  Kxe4 {[%clk 0:00:04]} 57. Ne1 {[%clk 0:00:03]}  Bd5 {[%clk 0:00:04]} 58. Ng2 {[%clk 0:00:03]}  e2 {[%clk 0:00:03]} 59. Kf2 {[%clk 0:00:04]}  Kd3 {[%clk 0:00:03]} 60. Ne1+ {[%clk 0:00:04]}  Kd2 {[%clk 0:00:04]} 61. Nc2 {[%clk 0:00:04]}  Be4 {[%clk 0:00:03]} 62. Ne1 {[%clk 0:00:05]}  Kd1 {[%clk 0:00:04]} 0-1


[Site "https://www.chess.com"]

[Event "Titled Tuesday Blitz May 10 Late 2022"]
[White "Holt, Conrad"]
[Black "Derraugh, Geordie"]
[WhiteFideId "2034387"]
[BlackFideId "2603950"]
[WhiteElo "2586"]
[BlackElo "2116"]
[Result "1-0"]
[Round "01"]
[TimeControl "180+1"]
[Date "2022.05.10"]
[WhiteClock "0:01:14"]
[BlackClock "0:00:14"]

1. d4 {[%clk 0:02:59]}  Nf6 {[%clk 0:02:57]} 2. c4 {[%clk 0:02:59]}  g6 {[%clk 0:02:56]} 3. Nc3 {[%clk 0:02:59]}  d5 {[%clk 0:02:56]} 4. e3 {[%clk 0:02:57]}  Bg7 {[%clk 0:02:56]} 5. Qb3 {[%clk 0:02:57]}  dxc4 {[%clk 0:02:56]} 6. Bxc4 {[%clk 0:02:57]}  O-O {[%clk 0:02:55]} 7. Nf3 {[%clk 0:02:57]}  Nc6 {[%clk 0:02:54]} 8. Ne5 {[%clk 0:02:56]}  Nxe5 {[%clk 0:02:38]} 9. dxe5 {[%clk 0:02:56]}  Ng4 {[%clk 0:02:39]} 10. f4 {[%clk 0:02:55]}  c6 {[%clk 0:02:34]} 11. O-O {[%clk 0:02:47]}  b5 {[%clk 0:02:32]} 12. Be2 {[%clk 0:02:47]}  Qb6 {[%clk 0:02:30]} 13. Ne4 {[%clk 0:02:40]}  Be6 {[%clk 0:02:28]} 14. Qc3 {[%clk 0:02:36]}  b4 {[%clk 0:01:35]} 15. Qc5 {[%clk 0:02:35]}  f5 {[%clk 0:01:23]} 16. Bxg4 {[%clk 0:02:22]}  fxg4 {[%clk 0:01:23]} 17. Qxe7 {[%clk 0:02:21]}  Rae8 {[%clk 0:01:22]} 18. Qh4 {[%clk 0:02:16]}  Bf5 {[%clk 0:01:10]} 19. Nd6 {[%clk 0:02:14]}  Rd8 {[%clk 0:01:02]} 20. Nxf5 {[%clk 0:02:09]}  gxf5 {[%clk 0:00:59]} 21. h3 {[%clk 0:02:07]}  gxh3 {[%clk 0:00:50]} 22. Qxh3 {[%clk 0:02:07]}  Kh8 {[%clk 0:00:50]} 23. Kh2 {[%clk 0:02:03]}  Rg8 {[%clk 0:00:50]} 24. Rf2 {[%clk 0:01:58]}  Rdf8 {[%clk 0:00:44]} 25. Bd2 {[%clk 0:01:57]}  a5 {[%clk 0:00:43]} 26. Rh1 {[%clk 0:01:55]}  Qd8 {[%clk 0:00:37]} 27. Kg1 {[%clk 0:01:54]}  h6 {[%clk 0:00:37]} 28. Qf3 {[%clk 0:01:45]}  Qd3 {[%clk 0:00:35]} 29. Kh2 {[%clk 0:01:41]}  Qc4 {[%clk 0:00:24]} 30. b3 {[%clk 0:01:40]}  Qe6 {[%clk 0:00:24]} 31. Rc1 {[%clk 0:01:39]}  Rc8 {[%clk 0:00:22]} 32. Rc5 {[%clk 0:01:37]}  Rgd8 {[%clk 0:00:22]} 33. Rxa5 {[%clk 0:01:35]}  Rd5 {[%clk 0:00:21]} 34. Rxd5 {[%clk 0:01:33]}  cxd5 {[%clk 0:00:22]} 35. Bxb4 {[%clk 0:01:33]}  Qb6 {[%clk 0:00:13]} 36. Bd6 {[%clk 0:01:29]}  d4 {[%clk 0:00:13]} 37. exd4 {[%clk 0:01:28]}  Qxd4 {[%clk 0:00:14]} 38. Ba3 {[%clk 0:01:16]}  Rc3 {[%clk 0:00:14]} 39. Bb2 {[%clk 0:01:14]}  Rxf3 {[%clk 0:00:14]} 40. Bxd4 {[%clk 0:01:14]} 1-0


[Site "https://www.chess.com"]

[Event "Titled Tuesday Blitz May 10 Late 2022"]
[White "Horcajuelo Rocamora, Martin"]
[Black "Koellner, Ruben Gideon"]
[WhiteFideId "24573027"]
[BlackFideId "12993093"]
[WhiteElo "1822"]
[BlackElo "2616"]
[Result "0-1"]
[Round "01"]
[TimeControl "180+1"]
[Date "2022.05.11"]
[WhiteClock "0:01:43"]
[BlackClock "0:01:09"]

1. e4 {[%clk 0:03:00]}  d6 {[%clk 0:03:00]} 2. d4 {[%clk 0:02:58]}  Nf6 {[%clk 0:03:00]} 3. Nc3 {[%clk 0:02:56]}  e5 {[%clk 0:03:01]} 4. dxe5 {[%clk 0:02:55]}  dxe5 {[%clk 0:03:01]} 5. Qxd8+ {[%clk 0:02:55]}  Kxd8 {[%clk 0:03:02]} 6. Bc4 {[%clk 0:02:54]}  Be6 {[%clk 0:03:03]} 7. Bxe6 {[%clk 0:02:50]}  fxe6 {[%clk 0:03:03]} 8. Nf3 {[%clk 0:02:51]}  Bd6 {[%clk 0:03:03]} 9. Bg5 {[%clk 0:02:49]}  Ke7 {[%clk 0:03:03]} 10. O-O-O {[%clk 0:02:49]}  a6 {[%clk 0:03:01]} 11. Be3 {[%clk 0:02:46]}  b5 {[%clk 0:03:00]} 12. Nd2 {[%clk 0:02:45]}  Nbd7 {[%clk 0:03:00]} 13. f3 {[%clk 0:02:43]}  Rhb8 {[%clk 0:02:59]} 14. g4 {[%clk 0:02:41]}  a5 {[%clk 0:02:58]} 15. h4 {[%clk 0:02:40]}  a4 {[%clk 0:02:57]} 16. Ne2 {[%clk 0:02:37]}  Rf8 {[%clk 0:02:45]} 17. Ng3 {[%clk 0:02:36]}  c5 {[%clk 0:02:30]} 18. Rh2 {[%clk 0:02:26]}  c4 {[%clk 0:02:29]} 19. c3 {[%clk 0:02:17]}  Bc5 {[%clk 0:02:28]} 20. Bxc5+ {[%clk 0:02:15]}  Nxc5 {[%clk 0:02:28]} 21. Kc2 {[%clk 0:02:15]}  Nfd7 {[%clk 0:02:17]} 22. Nh5 {[%clk 0:02:09]}  g6 {[%clk 0:02:14]} 23. Ng3 {[%clk 0:02:09]}  a3 {[%clk 0:02:09]} 24. b3 {[%clk 0:02:05]}  cxb3+ {[%clk 0:02:10]} 25. Nxb3 {[%clk 0:02:04]}  Nxb3 {[%clk 0:02:07]} 26. Kxb3 {[%clk 0:02:05]}  Rxf3 {[%clk 0:02:06]} 27. Rg2 {[%clk 0:02:02]}  Ra4 {[%clk 0:02:00]} 28. h5 {[%clk 0:01:59]}  Nc5+ {[%clk 0:01:58]} 29. Kc2 {[%clk 0:01:59]}  Rc4 {[%clk 0:01:56]} 30. Ne2 {[%clk 0:01:58]}  Nxe4 {[%clk 0:01:52]} 31. Rd3 {[%clk 0:01:56]}  Rxd3 {[%clk 0:01:44]} 32. Kxd3 {[%clk 0:01:57]}  Nf6 {[%clk 0:01:45]} 33. hxg6 {[%clk 0:01:55]}  hxg6 {[%clk 0:01:46]} 34. g5 {[%clk 0:01:53]}  Nd5 {[%clk 0:01:46]} 35. Rh2 {[%clk 0:01:52]}  Rg4 {[%clk 0:01:35]} 36. Rh7+ {[%clk 0:01:51]}  Kd6 {[%clk 0:01:35]} 37. Ra7 {[%clk 0:01:49]}  b4 {[%clk 0:01:29]} 38. c4 {[%clk 0:01:45]}  Nf4+ {[%clk 0:01:15]} 39. Nxf4 {[%clk 0:01:45]}  exf4 {[%clk 0:01:12]} 40. Ke4 {[%clk 0:01:43]}  f3+ {[%clk 0:01:09]} 41. Kxf3 {[%clk 0:01:43]}  Rxc4 {[%clk 0:01:09]} 0-1


[Site "https://www.chess.com"]

[Event "Titled Tuesday Blitz May 10 Late 2022"]
[White "Jacobson, Brandon"]
[Black "Song, Michael"]
[WhiteFideId "30901561"]
[BlackFideId "2613190"]
[WhiteElo "2362"]
[BlackElo "2274"]
[Result "1-0"]
[Round "01"]
[TimeControl "180+1"]
[Date "2022.05.10"]
[WhiteClock "0:01:55"]
[BlackClock "0:01:10"]

1. Nf3 {[%clk 0:03:00]}  f5 {[%clk 0:02:58]} 2. d3 {[%clk 0:02:59]}  Nc6 {[%clk 0:02:52]} 3. d4 {[%clk 0:02:58]}  e6 {[%clk 0:02:50]} 4. c4 {[%clk 0:02:58]}  Nf6 {[%clk 0:02:50]} 5. Nc3 {[%clk 0:02:57]}  Bb4 {[%clk 0:02:44]} 6. Bd2 {[%clk 0:02:55]}  d6 {[%clk 0:02:44]} 7. g3 {[%clk 0:02:50]}  O-O {[%clk 0:02:42]} 8. Bg2 {[%clk 0:02:51]}  Bxc3 {[%clk 0:02:41]} 9. Bxc3 {[%clk 0:02:51]}  Ne4 {[%clk 0:02:42]} 10. Rc1 {[%clk 0:02:50]}  Qe7 {[%clk 0:02:41]} 11. d5 {[%clk 0:02:45]}  Nxc3 {[%clk 0:02:40]} 12. Rxc3 {[%clk 0:02:45]}  Ne5 {[%clk 0:02:37]} 13. O-O {[%clk 0:02:42]}  Nxf3+ {[%clk 0:02:35]} 14. exf3 {[%clk 0:02:42]}  e5 {[%clk 0:02:36]} 15. c5 {[%clk 0:02:39]}  f4 {[%clk 0:02:35]} 16. Qb3 {[%clk 0:02:33]}  b6 {[%clk 0:02:27]} 17. cxd6 {[%clk 0:02:29]}  cxd6 {[%clk 0:02:28]} 18. Rfc1 {[%clk 0:02:29]}  Ba6 {[%clk 0:02:16]} 19. Bh3 {[%clk 0:02:28]}  Qf6 {[%clk 0:02:12]} 20. Be6+ {[%clk 0:02:25]}  Kh8 {[%clk 0:02:12]} 21. Qa3 {[%clk 0:02:25]}  Be2 {[%clk 0:01:59]} 22. Re1 {[%clk 0:02:02]}  Bb5 {[%clk 0:01:48]} 23. Qxd6 {[%clk 0:02:01]}  fxg3 {[%clk 0:01:48]} 24. hxg3 {[%clk 0:02:00]}  e4 {[%clk 0:01:12]} 25. Rxe4 {[%clk 0:01:57]}  Be8 {[%clk 0:01:10]} 26. Rf4 {[%clk 0:01:55]} 1-0


[Site "https://www.chess.com"]